bitfinex/quotes_BTCUSD_20230103
["timestamp","ask_amount","ask_price","bid_price","bid_amount"]
[1672784568601,0.48112812,16670.0,16669.0,2.58735717]
[1672784568857,0.48112812,16670.0,16669.0,1.98744117]
[1672784569112,0.48112812,16670.0,16669.0,2.26643378]
[1672784569379,0.48112812,16670.0,16669.0,2.86634977]
[1672784570099,0.48112812,16670.0,16669.0,2.86631977]
[1672784570353,0.48112812,16670.0,16669.0,3.46623577]
[1672784570612,0.48112812,16670.0,16669.0,2.86631977]
[1672784570873,0.48123837,16670.0,16669.0,2.56631079]
[1672784571174,0.6607769,16670.0,16669.0,1.98735217]
[1672784571408,0.84030012,16670.0,16669.0,1.27982717]
[1672784571667,0.84030012,16670.0,16669.0,1.48735217]
[1672784571930,1.10979695,16670.0,16669.0,1.48735217]
[1672784572178,0.8411196,16670.0,16669.0,1.48735217]
[1672784573156,0.84030012,16670.0,16669.0,1.48735217]
[1672784574667,0.84030012,16670.0,16669.0,1.48744115]
[1672784574911,0.84030012,16670.0,16669.0,1.27991615]
[1672784575131,0.8411196,16670.0,16669.0,1.27991615]
[1672784575409,0.8411196,16670.0,16669.0,1.48744115]
[1672784575899,0.8411196,16670.0,16669.0,1.27991615]
[1672784577156,0.84030012,16670.0,16669.0,1.18749115]
[1672784577399,0.48102465,16670.0,16669.0,0.97996615]
[1672784577648,0.8406049,16670.0,16669.0,1.18749114]
[1672784577902,0.8406049,16670.0,16669.0,0.97996614]
[1672784578146,0.8406049,16670.0,16669.0,1.57988214]
[1672784578388,0.8406049,16670.0,16669.0,0.97996614]
[1672784578612,0.8406049,16670.0,16669.0,1.18749114]
[1672784579572,0.8406049,16670.0,16669.0,0.97996614]
[1672784580351,0.8406049,16670.0,16669.0,0.9798494]
[1672784580592,0.8406049,16670.0,16669.0,1.5797654]
[1672784580855,0.8406049,16670.0,16669.0,1.7872904]
[1672784581347,0.8406049,16670.0,16669.0,1.5797654]
[1672784582877,0.8406049,16670.0,16669.0,1.7872904]
[1672784583628,0.8406049,16670.0,16669.0,2.0872204]
[1672784584552,0.8406049,16670.0,16669.0,1.4873044]
[1672784584553,0.48102465,16670.0,16669.0,1.4873044]
[1672784584766,0.48102465,16670.0,16669.0,1.2797794]
[1672784584945,0.48102465,16670.0,16669.0,1.4873044]
[1672784585185,0.48102465,16670.0,16669.0,1.2797794]
[1672784585335,0.48096465,16670.0,16669.0,1.2797794]
[1672784585814,0.48096465,16670.0,16669.0,1.4873044]
[1672784586145,0.48175945,16670.0,16669.0,1.4873044]
[1672784587015,0.48096465,16670.0,16669.0,1.4873044]
[1672784588131,0.48175945,16670.0,16669.0,1.4873044]
[1672784588878,0.48175945,16670.0,16669.0,1.48730439]
[1672784589621,0.03277963,16670.0,16669.0,1.18737439]
[1672784589870,0.03277963,16670.0,16669.0,0.97984939]
[1672784590597,0.03277963,16670.0,16669.0,1.27977939]
[1672784590810,0.03277963,16670.0,16669.0,1.48730439]
[1672784591090,0.03277963,16670.0,16669.0,1.27977939]
[1672784594241,0.03277963,16670.0,16669.0,1.87969539]
[1672784594927,0.03277963,16670.0,16669.0,2.08722039]
[1672784595608,0.03277963,16670.0,16669.0,1.78729039]
[1672784595849,0.03277963,16670.0,16669.0,1.57976539]
[1672784596390,0.03277963,16670.0,16669.0,0.97984939]
[1672784596668,0.48228394,16670.0,16669.0,0.97984939]
[1672784597100,0.48228394,16670.0,16669.0,1.27977939]
[1672784599315,0.78956452,16670.0,16669.0,0.14687453]
[1672784599560,1.32853322,16670.0,16669.0,0.14687453]
[1672784599807,1.32842297,16670.0,16669.0,0.14687453]
[1672784600328,1.32853322,16670.0,16669.0,0.14687453]
[1672784600586,1.32842297,16670.0,16669.0,0.13891408]
[1672784600827,1.40583427,16670.0,16669.0,0.13891408]
[1672784601069,3.81158763,16670.0,16669.0,0.13891408]
[1672784601578,3.81169788,16670.0,16669.0,0.13891408]
[1672784602079,3.20558452,16670.0,16669.0,0.13879432]
[1672784606363,3.74409101,16670.0,16669.0,0.13879432]
[1672784607015,3.20558452,16670.0,16669.0,0.13879432]
[1672784608306,3.14401223,16670.0,16669.0,0.13879432]
[1672784610147,2.52763223,16670.0,16669.0,0.13879432]
[1672784610407,3.14412248,16670.0,16669.0,0.13879432]
[1672784616629,3.14401223,16670.0,16669.0,0.13879432]
[1672784616901,2.52763223,16670.0,16669.0,0.13879432]
[1672784617412,3.14401223,16670.0,16669.0,0.13879432]
[1672784617636,2.52763223,16670.0,16669.0,0.13879432]
[1672784618448,3.12751223,16670.0,16669.0,0.13879432]
[1672784618701,3.74389223,16670.0,16669.0,0.13879432]
[1672784619155,3.12751223,16670.0,16669.0,0.13879432]
[1672784619370,3.74389223,16670.0,16669.0,0.13879432]
[1672784620353,3.74400248,16670.0,16669.0,0.13879432]
[1672784621537,3.14412248,16670.0,16669.0,0.13879432]
[1672784623012,3.14401223,16670.0,16669.0,0.13879432]
[1672784623717,2.52774248,16670.0,16669.0,0.13879432]
[1672784623969,3.14412248,16670.0,16669.0,0.13879432]
[1672784624208,3.14401223,16670.0,16669.0,0.1387298]
[1672784624728,8.05123223,16670.0,16669.0,0.1387298]
[1672784624977,8.66772248,16670.0,16669.0,0.1387298]
[1672784626921,8.32591075,16670.0,16669.0,0.13881878]
[1672784627171,5.97135279,16670.0,16669.0,0.43877878]
[1672784627676,6.58784304,16670.0,16669.0,0.4386898]
[1672784627927,6.58773279,16670.0,16669.0,0.43877878]
[1672784628170,5.97135279,16670.0,16669.0,0.43877878]
[1672784632093,5.97146304,16670.0,16669.0,0.4386898]
[1672784632338,5.97135279,16670.0,16669.0,0.43868979]
[1672784633070,6.42044644,16670.0,16669.0,0.43868979]
[1672784633319,6.42055669,16670.0,16669.0,0.43868979]
[1672784633590,5.97135279,16670.0,16669.0,0.43868979]
[1672784634300,5.97135279,16670.0,16669.0,0.13872979]
[1672784635798,6.57123279,16670.0,16669.0,0.13872979]
[1672784636372,6.57134304,16670.0,16669.0,0.13872979]
[1672784636630,7.18761279,16670.0,16669.0,0.13872979]
[1672784637380,7.726141,16670.0,16669.0,0.13872979]
[1672784637872,7.18772304,16670.0,16669.0,0.13872979]
[1672784638123,7.72603075,16670.0,16669.0,0.13872979]
[1672784638341,7.726141,16670.0,16669.0,0.13872979]
[1672784639059,7.72603075,16670.0,16669.0,0.13872979]
[1672784639561,7.726141,16670.0,16669.0,0.13872979]
[1672784639859,8.326021,16670.0,16669.0,0.13872979]
[1672784640107,8.32591075,16670.0,16669.0,0.13872979]
[1672784641595,7.72603075,16670.0,16669.0,0.13872979]
[1672784642290,7.10965075,16670.0,16669.0,0.13872979]
[1672784642567,8.32591075,16670.0,16669.0,0.13872979]
[1672784645651,8.32591075,16670.0,16669.0,0.13866012]
[1672784645863,8.326021,16670.0,16669.0,0.13866012]
[1672784646292,8.32591075,16670.0,16669.0,0.13866012]
[1672784646480,7.72603075,16670.0,16669.0,0.13866012]
[1672784646874,7.72603075,16670.0,16669.0,0.13882941]
[1672784647559,7.72603075,16670.0,16669.0,0.13866012]
[1672784647812,7.726141,16670.0,16669.0,0.13866012]
[1672784648489,7.72603075,16670.0,16669.0,0.13866012]
[1672784649000,7.18761279,16670.0,16669.0,0.13866012]
[1672784649240,7.17088699,16670.0,16669.0,0.12193432]
[1672784649644,6.55450699,16670.0,16669.0,0.12193432]
[1672784650095,7.18598735,16670.0,16669.0,0.12193432]
[1672784650385,6.56960735,16670.0,16669.0,0.12193432]
[1672784652551,6.5697176,16670.0,16669.0,0.12193432]
[1672784652805,6.56960735,16670.0,16669.0,0.12193432]
[1672784653504,6.97220063,16670.0,16669.0,0.12193432]
[1672784654176,6.97285769,16670.0,16669.0,0.12193432]
[1672784654479,6.37308794,16670.0,16669.0,0.12193432]
[1672784654602,6.37297769,16670.0,16669.0,0.12193432]
[1672784656557,6.97285769,16670.0,16669.0,0.12193432]
[1672784657607,6.37297769,16670.0,16669.0,0.12193432]
[1672784658759,6.98935769,16670.0,16669.0,0.12193432]
[1672784659466,7.52777565,16670.0,16669.0,0.12193432]
[1672784659677,7.5278859,16670.0,16669.0,0.12193432]
[1672784659917,7.52777565,16670.0,16669.0,0.12193432]
[1672784660629,6.91139565,16670.0,16669.0,0.12193432]
[1672784661328,7.5113859,16670.0,16669.0,0.12193432]
[1672784661569,8.1277659,16670.0,16669.0,0.12193432]
[1672784661810,8.12765565,16670.0,16669.0,0.12193432]
[1672784662307,8.1277659,16670.0,16669.0,0.12193432]
[1672784662548,7.52777565,16670.0,16669.0,0.12193432]
[1672784662761,6.31151565,16670.0,16669.0,0.12193432]
[1672784663689,6.91139565,16670.0,16669.0,0.12193432]
[1672784664558,6.9115059,16670.0,16669.0,0.12193432]
[1672784665933,6.91139565,16670.0,16669.0,0.12193432]
[1672784667287,6.9115059,16670.0,16669.0,0.12193432]
[1672784667529,6.91139565,16670.0,16669.0,0.12193432]
[1672784668683,6.9115059,16670.0,16669.0,0.12193432]
[1672784669426,6.91139565,16670.0,16669.0,0.12193432]
[1672784670223,6.3116259,16670.0,16669.0,0.12193432]
[1672784670484,6.31151565,16670.0,16669.0,0.12193432]
[1672784671312,6.3116259,16670.0,16669.0,0.12193432]
[1672784671802,6.3116259,16670.0,16669.0,0.1299744]
[1672784671803,5.89654249,16670.0,16669.0,0.1299744]
[1672784672047,5.89654249,16670.0,16669.0,0.3374994]
[1672784672341,5.35812453,16670.0,16669.0,0.3374994]
[1672784672587,5.35812453,16670.0,16669.0,0.1299744]
[1672784673099,5.79065919,16670.0,16669.0,0.1299744]
[1672784673323,6.32907715,16670.0,16669.0,0.1299744]
[1672784673841,6.32907715,16670.0,16669.0,0.4299244]
[1672784674507,6.22907715,16670.0,16669.0,0.4299244]
[1672784674651,6.2291874,16670.0,16669.0,0.4299244]
[1672784674867,6.22907715,16670.0,16669.0,0.4299244]
[1672784676179,6.22890913,16670.0,16669.0,0.4299244]
[1672784676400,6.22901938,16670.0,16669.0,0.4299244]
[1672784676775,6.22890913,16670.0,16669.0,0.4299244]
[1672784680511,6.22890913,16670.0,16669.0,1.0298404]
[1672784680751,6.22890913,16670.0,16669.0,0.4299244]
[1672784681004,5.68933139,16670.0,16669.0,0.4299244]
[1672784681250,5.25746747,16670.0,16669.0,0.4299244]
[1672784681897,5.68884235,16670.0,16669.0,0.4299244]
[1672784682148,5.68939163,16670.0,16669.0,0.4299244]
[1672784683165,6.22780959,16670.0,16669.0,0.4299244]
[1672784683425,5.68939163,16670.0,16669.0,0.4299244]
[1672784684144,6.22780959,16670.0,16669.0,0.4299244]
[1672784684358,5.68939163,16670.0,16669.0,0.4299244]
[1672784684614,6.22780959,16670.0,16669.0,0.4299244]
[1672784685150,5.68939163,16670.0,16669.0,0.4299244]
[1672784686079,6.22780959,16670.0,16669.0,0.4299244]
[1672784686835,5.68939163,16670.0,16669.0,0.4299244]
[1672784687811,5.25801675,16670.0,16669.0,0.4299244]
[1672784688918,5.68939163,16670.0,16669.0,0.4299244]
[1672784689128,6.22780959,16670.0,16669.0,0.4299244]
[1672784691390,6.22780959,16670.0,16669.0,0.42992439]
[1672784691715,5.68939163,16670.0,16669.0,0.42992439]
[1672784691928,5.25801675,16670.0,16669.0,0.42992439]
[1672784692734,5.68950188,16670.0,16669.0,0.42992439]
[1672784692969,6.28927163,16670.0,16669.0,0.42992439]
[1672784693109,6.82714031,16670.0,16669.0,0.42992439]
[1672784693347,6.22726031,16670.0,16669.0,0.42992439]
[1672784694052,6.22780959,16670.0,16669.0,0.42992439]
[1672784694996,6.21270923,16670.0,16669.0,0.42992439]
[1672784695872,6.21270923,16670.0,16669.0,0.43154347]
[1672784696136,5.67429127,16670.0,16669.0,0.43154347]
[1672784696352,5.67429127,16670.0,16669.0,0.42992439]
[1672784696570,6.21281948,16670.0,16669.0,0.42992439]
[1672784696783,6.21270923,16670.0,16669.0,0.42992439]
[1672784697223,6.21215995,16670.0,16669.0,0.42992439]
[1672784698038,6.23939723,16670.0,16669.0,0.42992439]
[1672784699000,6.23950748,16670.0,16669.0,0.42992439]
[1672784699239,6.23939723,16670.0,16669.0,0.42993439]
[1672784699457,6.23939723,16670.0,16669.0,0.42982682]
[1672784699689,6.23939723,16670.0,16669.0,0.42990776]
[1672784699897,6.23950748,16670.0,16669.0,0.42982682]
[1672784700141,6.23994275,16670.0,16669.0,0.42982682]
[1672784700948,6.240053,16670.0,16669.0,0.42982682]
[1672784701602,6.23994275,16670.0,16669.0,0.42982682]
[1672784701841,6.23994275,16670.0,16669.0,0.12986682]
[1672784702327,6.23939723,16670.0,16669.0,0.42982682]
[1672784703550,6.23939723,16670.0,16669.0,0.42990776]
[1672784703795,6.23939723,16670.0,16669.0,0.42982682]
[1672784705683,6.23939723,16670.0,16669.0,0.42990776]
[1672784705924,6.23939723,16670.0,16669.0,0.42982682]
[1672784707014,5.70097927,16670.0,16669.0,0.42990776]
[1672784708207,6.23939723,16670.0,16669.0,0.42990776]
[1672784708454,5.70097927,16670.0,16669.0,0.42990776]
[1672784708667,6.23950748,16670.0,16669.0,0.42982682]
[1672784709367,5.70108952,16670.0,16669.0,0.42982682]
[1672784709586,6.23939723,16670.0,16669.0,0.42982682]
[1672784711282,6.23994275,16670.0,16669.0,0.42990776]
[1672784711759,6.240053,16670.0,16669.0,0.42982682]
[1672784711971,6.23994275,16670.0,16669.0,0.42982682]
[1672784712433,6.23994275,16670.0,16669.0,0.42990776]
[1672784712649,6.23994275,16670.0,16669.0,0.12994776]
[1672784713104,6.23994275,16670.0,16669.0,0.12986682]
[1672784713354,6.23994275,16670.0,16669.0,0.12994776]
[1672784713818,6.23994275,16670.0,16669.0,0.12986682]
[1672784714944,6.240053,16670.0,16669.0,0.12986682]
[1672784715641,6.23994275,16670.0,16669.0,0.12994776]
[1672784716358,6.83982275,16670.0,16669.0,0.12182674]
[1672784718895,6.83982275,16670.0,16669.0,0.12191472]
[1672784718896,7.43970275,16670.0,16669.0,0.12191472]
[1672784719149,7.43970275,16670.0,16669.0,0.12182674]
[1672784719896,8.05608275,16670.0,16669.0,0.12191472]
[1672784720155,8.05608275,16670.0,16669.0,0.12182674]
[1672784721622,8.05608275,16670.0,16669.0,0.12174839]
[1672784722107,8.05608275,16670.0,16669.0,0.12182968]
[1672784723059,8.056193,16670.0,16669.0,0.12174839]
[1672784723294,8.05608275,16670.0,16669.0,0.12182968]
[1672784725150,8.05608275,16670.0,16669.0,0.12174839]
[1672784725363,8.05608275,16670.0,16669.0,0.12183604]
[1672784725602,8.05608275,16670.0,16669.0,0.12174839]
[1672784726967,8.056193,16670.0,16669.0,0.12174839]
[1672784727437,8.05608275,16670.0,16669.0,0.12174839]
[1672784728303,6.85632275,16670.0,16669.0,0.12987987]
[1672784728554,6.23994275,16670.0,16669.0,0.12987987]
[1672784728810,5.80856787,16670.0,16669.0,0.12987987]
[1672784730035,5.27014991,16670.0,16669.0,1.11884753]
[1672784730293,5.7198484,16670.0,16669.0,1.71876353]
[1672784730564,5.7198484,16670.0,16669.0,1.92628853]
[1672784731943,5.7198484,16670.0,16669.0,1.4022672]
[1672784732211,5.7198484,16670.0,16669.0,1.6097922]
[1672784732463,6.07954011,16670.0,16669.0,1.7021872]
[1672784732681,6.07954011,16670.0,16669.0,1.9097122]
[1672784732888,6.07954011,16670.0,16669.0,2.50962819]
[1672784736608,6.34924195,16670.0,16669.0,2.50962819]
[1672784736861,6.07954011,16670.0,16669.0,1.90971219]
[1672784737348,6.34924281,16670.0,16669.0,2.50962819]
[1672784737858,6.34924249,16670.0,16669.0,2.50962819]
[1672784738103,6.34924249,16670.0,16669.0,1.70218719]
[1672784738389,6.34921015,16670.0,16669.0,1.90971219]
[1672784738625,6.34921039,16670.0,16669.0,2.30210319]
[1672784738885,6.34921039,16670.0,16669.0,2.50962819]
[1672784739127,6.07954011,16670.0,16669.0,2.50962819]
[1672784739370,6.07954011,16670.0,16669.0,1.91305153]
[1672784739859,6.07954011,16670.0,16669.0,2.12057653]
[1672784741078,6.07954011,16670.0,16669.0,1.91305153]
[1672784741784,6.34921342,16670.0,16669.0,1.91305153]
[1672784741996,5.89951493,16670.0,16669.0,1.91305153]
[1672784743824,6.07954011,16670.0,16669.0,1.91305153]
[1672784744556,6.34917592,16670.0,16669.0,1.91305153]
[1672784745042,6.34917592,16670.0,16669.0,1.62963186]
[1672784745288,5.89947743,16670.0,16669.0,1.62963186]
[1672784745792,5.89947743,16670.0,16669.0,1.89579438]
[1672784746037,5.89947743,16670.0,16669.0,1.89571146]
[1672784748511,5.89947743,16670.0,16669.0,1.62954894]
[1672784749018,5.89947743,16670.0,16669.0,1.62954289]
[1672784751476,6.34917592,16670.0,16669.0,1.62954289]
[1672784751722,5.89947743,16670.0,16669.0,1.62954289]
[1672784753438,5.89947743,16670.0,16669.0,1.02954529]
[1672784753698,5.89947743,16670.0,16669.0,1.02963264]
[1672784754184,5.89947743,16670.0,16669.0,0.72971264]
[1672784754667,5.89947743,16670.0,16669.0,1.00084812]
[1672784754903,5.89947743,16670.0,16669.0,0.72971264]
[1672784755199,5.89947743,16670.0,16669.0,1.32962864]
[1672784755448,5.89947743,16670.0,16669.0,1.6029372]
[1672784755701,5.89947743,16670.0,16669.0,1.32962864]
[1672784756563,5.89947743,16670.0,16669.0,1.9028572]
[1672784758731,5.89947743,16670.0,16669.0,1.3029412]
[1672784758945,5.89947743,16670.0,16669.0,1.9028572]
[1672784759494,5.89947743,16670.0,16669.0,1.5104662]
[1672784759731,5.89947743,16670.0,16669.0,1.9028572]
[1672784759952,5.89947743,16670.0,16669.0,2.1103822]
[1672784760178,5.89947743,16670.0,16669.0,2.5027699]
[1672784761088,5.89947743,16670.0,16669.0,2.6827699]
[1672784761324,6.07923761,16670.0,16669.0,2.6827699]
[1672784762214,5.89947743,16670.0,16669.0,2.6827699]
[1672784762428,5.89947743,16670.0,16669.0,2.2903822]
[1672784762634,5.89958768,16670.0,16669.0,2.29029485]
[1672784762909,5.89947743,16670.0,16669.0,1.69046074]
[1672784763130,5.89947743,16670.0,16669.0,2.29037674]
[1672784764202,5.89947743,16670.0,16669.0,2.0827868]
[1672784764397,5.89947743,16670.0,16669.0,1.69046074]
[1672784764613,5.89958768,16670.0,16669.0,2.08270495]
[1672784764829,5.89947743,16670.0,16669.0,2.68270284]
[1672784765067,5.89947743,16670.0,16669.0,2.29037674]
[1672784765568,5.89947743,16670.0,16669.0,2.68269527]
[1672784765824,5.88947743,16670.0,16669.0,2.68269527]
[1672784766072,5.88947743,16670.0,16669.0,2.29037674]
[1672784766321,5.88947743,16670.0,16669.0,2.08277928]
[1672784766561,5.88947743,16670.0,16669.0,1.69046074]
[1672784767084,5.88947743,16670.0,16669.0,2.29037674]
[1672784767351,5.88947743,16670.0,16669.0,1.69046074]
[1672784768058,6.06954011,16670.0,16669.0,1.69046074]
[1672784768313,6.06954011,16670.0,16669.0,2.29037674]
[1672784769075,6.06954011,16670.0,16669.0,1.69046074]
[1672784770264,6.06954011,16670.0,16669.0,2.29037674]
[1672784770729,6.06954011,16670.0,16669.0,2.68268313]
[1672784774356,5.88977007,16670.0,16669.0,2.68268313]
[1672784775347,5.88922455,16670.0,16669.0,2.68268313]
[1672784776303,5.88976641,16670.0,16669.0,2.68268313]
[1672784776575,5.88976641,16670.0,16669.0,2.38276313]
[1672784776840,5.88976641,16670.0,16669.0,2.68268313]
[1672784777524,5.88976641,16670.0,16669.0,2.38276313]
[1672784778520,5.88976641,16670.0,16669.0,2.68268313]
[1672784780592,5.88976641,16670.0,16669.0,2.08276713]
[1672784780811,5.88976641,16670.0,16669.0,1.69046593]
[1672784781025,5.88976641,16670.0,16669.0,1.48294093]
[1672784781524,5.88976641,16670.0,16669.0,2.08285693]
[1672784781745,5.88976641,16670.0,16669.0,2.29038193]
[1672784782212,5.88976641,16670.0,16669.0,2.68271518]
[1672784782466,5.88976641,16670.0,16669.0,2.29038193]
[1672784782724,5.88976641,16670.0,16669.0,1.69046593]
[1672784782938,5.88976641,16670.0,16669.0,1.48294093]
[1672784783196,5.88976641,16670.0,16669.0,1.69046593]
[1672784783462,5.88987666,16670.0,16669.0,1.48285385]
[1672784783734,5.88987666,16670.0,16669.0,2.29029485]
[1672784783920,5.88976641,16670.0,16669.0,2.29038193]
[1672784784969,5.88976641,16670.0,16669.0,2.68271527]
[1672784785641,5.88976641,16670.0,16669.0,2.29038193]
[1672784786029,5.88976641,16670.0,16669.0,1.99046193]
[1672784787207,5.88976641,16670.0,16669.0,2.29026469]
[1672784789333,5.88976641,16670.0,16669.0,2.28526469]
[1672784790307,5.88950062,16670.0,16669.0,1.68534869]
[1672784790692,5.88950062,16670.0,16669.0,1.47782369]
[1672784790865,5.88950062,16670.0,16669.0,1.68534869]
[1672784791319,5.88950062,16670.0,16669.0,2.28526469]
[1672784792473,6.33912507,16670.0,16669.0,2.28526469]
[1672784792695,5.88942658,16670.0,16669.0,2.28526469]
[1672784793493,6.33912507,16670.0,16669.0,2.28526469]
[1672784793661,5.88942658,16670.0,16669.0,2.28526469]
[1672784793881,6.33912507,16670.0,16669.0,2.28526469]
[1672784794115,5.88942658,16670.0,16669.0,2.28526469]
[1672784794510,5.88942658,16670.0,16669.0,1.98534469]
[1672784794975,5.88942658,16670.0,16669.0,2.28526469]
[1672784796802,5.88942658,16670.0,16669.0,1.68534869]
[1672784797516,5.88942658,16670.0,16669.0,2.28526469]
[1672784799726,5.88942658,16670.0,16669.0,1.98534469]
[1672784800182,5.88942658,16670.0,16669.0,1.38542869]
[1672784800401,5.88942658,16670.0,16669.0,1.68534869]
[1672784800630,5.88942658,16670.0,16669.0,2.28526469]
[1672784801167,5.88942658,16670.0,16669.0,1.98534469]
[1672784801426,5.88942658,16670.0,16669.0,2.28526469]
[1672784801921,6.33912507,16670.0,16669.0,1.68526161]
[1672784802415,6.33912507,16670.0,16669.0,1.68534375]
[1672784802629,6.06927066,16670.0,16669.0,1.68534375]
[1672784802876,6.06927066,16670.0,16669.0,2.28525975]
[1672784803087,6.06927066,16670.0,16669.0,1.80533975]
[1672784803334,6.06927066,16670.0,16669.0,1.59781475]
[1672784803554,6.06927066,16670.0,16669.0,2.10525975]
[1672784803792,6.33918262,16670.0,16669.0,2.10525975]
[1672784804037,6.06927066,16670.0,16669.0,2.10525975]
[1672784804514,6.33919733,16670.0,16669.0,2.10525975]
[1672784805202,6.33892126,16670.0,16669.0,2.10525975]
[1672784805426,6.33892126,16670.0,16669.0,1.50534845]
[1672784805427,6.06899459,16670.0,16669.0,1.50534845]
[1672784805641,6.06899459,16670.0,16669.0,1.50526161]
[1672784805896,6.06899459,16670.0,16669.0,1.29773661]
[1672784806399,6.06932221,16670.0,16669.0,0.69782061]
[1672784806612,6.06932221,16670.0,16669.0,0.69790745]
[1672784806874,5.7096305,16670.0,16669.0,0.69790745]
[1672784807437,5.7096305,16670.0,16669.0,0.42459889]
[1672784808765,5.7096305,16670.0,16669.0,1.02451489]
[1672784809242,5.70930288,16670.0,16669.0,1.02451489]
[1672784809953,5.70930288,16670.0,16669.0,1.23203989]
[1672784810192,6.06914166,16670.0,16669.0,1.02445072]
[1672784810409,5.70941313,16670.0,16669.0,0.42444788]
[1672784810654,5.70930288,16670.0,16669.0,0.42453025]
[1672784810892,5.70930288,16670.0,16669.0,0.42444788]
[1672784811133,5.7096305,16670.0,16669.0,0.42444788]
[1672784811639,6.06949324,16670.0,16669.0,0.70047174]
[1672784811855,6.06949324,16670.0,16669.0,0.42461275]
[1672784812064,6.06949324,16670.0,16669.0,0.12469275]
[1672784812281,6.06916562,16670.0,16669.0,0.72460875]
[1672784814439,6.06916562,16670.0,16669.0,1.02453875]
[1672784815399,6.06916562,16670.0,16669.0,0.63198288]
[1672784816109,6.06949324,16670.0,16669.0,0.42445788]
[1672784816331,6.06949324,16670.0,16669.0,1.30169947]
[1672784816803,6.06949324,16670.0,16669.0,1.02437388]
[1672784817048,6.06949324,16670.0,16669.0,0.42445788]
[1672784817292,6.06916562,16670.0,16669.0,0.42445788]
[1672784818268,6.06949324,16670.0,16669.0,0.42445788]
[1672784818478,6.06949324,16670.0,16669.0,1.02437388]
[1672784818730,6.06960349,16670.0,16669.0,1.02437388]
[1672784818982,6.06949324,16670.0,16669.0,1.23189888]
[1672784819193,6.06916562,16670.0,16669.0,1.02453875]
[1672784819463,6.06916562,16670.0,16669.0,0.72460875]
[1672784820600,6.06916562,16670.0,16669.0,0.93213375]
[1672784820847,6.06916562,16670.0,16669.0,0.72460875]
[1672784821681,6.06916562,16670.0,16669.0,1.32452475]
[1672784821924,6.04192834,16670.0,16669.0,1.32452475]
[1672784822963,6.04192834,16670.0,16669.0,1.53204975]
[1672784823205,6.06735493,16670.0,16669.0,1.53204975]
[1672784823440,6.06735493,16670.0,16669.0,1.60342539]
[1672784823696,6.06735493,16670.0,16669.0,1.81078552]
[1672784823954,6.06735493,16670.0,16669.0,1.60326052]
[1672784824186,6.06702985,16670.0,16669.0,1.60326052]
[1672784824437,6.06702985,16670.0,16669.0,1.32435988]
[1672784825312,6.06735493,16670.0,16669.0,1.32435988]
[1672784827185,6.06702985,16670.0,16669.0,1.32452475]
[1672784828454,6.06702985,16670.0,16669.0,1.59706192]
[1672784828705,6.06702985,16670.0,16669.0,1.62444475]
[1672784828955,6.06702985,16670.0,16669.0,1.02452875]
[1672784829211,6.06702985,16670.0,16669.0,1.23205375]
[1672784829717,6.06702985,16670.0,16669.0,1.02452875]
[1672784830216,6.06702985,16670.0,16669.0,1.62444475]
[1672784830465,6.06702985,16670.0,16669.0,1.62433981]
[1672784836557,6.06702985,16670.0,16669.0,1.81054558]
[1672784836819,6.06702985,16670.0,16669.0,1.83186481]
[1672784837072,6.06702985,16670.0,16669.0,1.62433981]
[1672784838549,6.06702985,16670.0,16669.0,1.83186481]
[1672784839058,6.06702985,16670.0,16669.0,1.62433981]
[1672784839585,6.06702985,16670.0,16669.0,1.83186481]
[1672784839834,6.06702985,16670.0,16669.0,2.10008843]
[1672784840301,6.06735493,16670.0,16669.0,2.10008843]
[1672784840513,6.49872981,16670.0,16669.0,1.50000756]
[1672784840758,6.49872981,16670.0,16669.0,0.69256656]
[1672784840759,6.06735493,16670.0,16669.0,0.69256656]
[1672784841017,6.06735493,16670.0,16669.0,0.63188794]
[1672784841267,5.70749219,16670.0,16669.0,0.63188794]
[1672784841517,5.70749219,16670.0,16669.0,0.42436294]
[1672784842021,5.70749219,16670.0,16669.0,0.63188794]
[1672784842267,5.70749219,16670.0,16669.0,1.23180394]
[1672784842268,5.70716711,16670.0,16669.0,1.23180394]
[1672784843008,5.70716711,16670.0,16669.0,1.83171994]
[1672784843252,5.70716711,16670.0,16669.0,2.10835456]
[1672784843515,6.06705068,16670.0,16669.0,2.10835456]
[1672784844021,6.06705068,16670.0,16669.0,2.10851943]
[1672784845754,6.06705068,16670.0,16669.0,1.90099443]
[1672784845998,6.06705068,16670.0,16669.0,1.83188481]
[1672784846617,6.06705068,16670.0,16669.0,1.62435981]
[1672784846825,5.70716711,16670.0,16669.0,1.02444381]
[1672784847048,5.70716711,16670.0,16669.0,1.23196881]
[1672784847646,5.70716711,16670.0,16669.0,1.02444381]
[1672784848597,5.70716711,16670.0,16669.0,1.02443381]
[1672784848844,5.70716711,16670.0,16669.0,0.93202881]
[1672784849088,5.70716711,16670.0,16669.0,1.02443381]
[1672784851082,5.70716711,16670.0,16669.0,1.62434981]
[1672784851600,5.70716711,16670.0,16669.0,1.83187481]
[1672784852095,5.70716711,16670.0,16669.0,1.62434981]
[1672784852310,5.70716711,16670.0,16669.0,1.02443381]
[1672784852553,5.70716711,16670.0,16669.0,1.62434981]
[1672784852728,5.70716711,16670.0,16669.0,1.83187481]
[1672784852942,5.70716711,16670.0,16669.0,1.23195881]
[1672784853200,5.70716711,16670.0,16669.0,1.02443381]
[1672784854350,6.06761676,16670.0,16669.0,1.29721627]
[1672784854807,6.06761676,16670.0,16669.0,1.50474127]
[1672784855352,6.06761676,16670.0,16669.0,1.89713227]
[1672784855564,6.06761676,16670.0,16669.0,2.10465727]
[1672784856944,6.06761676,16670.0,16669.0,1.29721627]
[1672784857686,6.06761676,16670.0,16669.0,1.50474127]
[1672784857929,6.06761676,16670.0,16669.0,0.99728627]
[1672784858166,6.06761676,16670.0,16669.0,1.29720627]
[1672784858882,6.06761676,16670.0,16669.0,1.50473127]
[1672784859305,6.06705736,16670.0,16669.0,1.50473127]
[1672784860335,6.06761676,16670.0,16669.0,1.50473127]
[1672784861037,6.06761676,16670.0,16669.0,1.29720627]
[1672784862658,6.06761676,16670.0,16669.0,1.89712227]
[1672784863403,6.06705736,16670.0,16669.0,1.89712227]
[1672784863655,6.06705736,16670.0,16669.0,1.29720627]
[1672784864405,6.06761676,16670.0,16669.0,1.29720627]
[1672784865416,6.06705736,16670.0,16669.0,1.29720627]
[1672784866169,6.06705736,16670.0,16669.0,1.50473127]
[1672784866408,6.06761676,16670.0,16669.0,1.29720627]
[1672784867276,6.06705736,16670.0,16669.0,1.29720627]
[1672784867716,6.06705736,16670.0,16669.0,1.89712227]
[1672784867967,6.06705736,16670.0,16669.0,1.62433981]
[1672784868238,6.06705736,16670.0,16669.0,1.32441981]
[1672784868487,6.06705736,16670.0,16669.0,1.62433981]
[1672784868711,6.06705736,16670.0,16669.0,1.83186481]
[1672784869191,6.06705736,16670.0,16669.0,1.62433981]
[1672784869430,6.06705736,16670.0,16669.0,1.02442381]
[1672784871229,6.06705736,16670.0,16669.0,0.72442173]
[1672784871521,6.06705736,16670.0,16669.0,1.02434173]
[1672784871764,6.06705736,16670.0,16669.0,1.2942555]
[1672784872026,6.04195585,16670.0,16669.0,2.1016965]
[1672784872528,6.04195585,16670.0,16669.0,1.2942555]
[1672784872770,6.04195585,16670.0,16669.0,1.8941715]
[1672784872991,6.07213624,16670.0,16669.0,1.8941715]